bitfinex/quotes_BTCUSD_20250813
["timestamp","ask_amount","ask_price","bid_price","bid_amount"]
[1755052229654,0.60803204,119150.0,119140.0,2.21987012]
[1755052230060,0.60803204,119150.0,119140.0,2.21787012]
[1755052230303,0.60803204,119150.0,119140.0,2.43077012]
[1755052230493,0.60803204,119150.0,119140.0,2.43677012]
[1755052230715,0.60803204,119150.0,119140.0,2.43377012]
[1755052231129,0.60803204,119150.0,119140.0,2.43777012]
[1755052235693,0.60803204,119150.0,119140.0,2.74353012]
[1755052238174,0.60803204,119150.0,119140.0,2.63893012]
[1755052239205,0.60803204,119150.0,119140.0,2.50809012]
[1755052239662,0.60803204,119150.0,119140.0,2.63941012]
[1755052239894,0.61319204,119150.0,119140.0,2.30374012]
[1755052240122,0.61319204,119150.0,119140.0,2.4154211]
[1755052240800,0.61319204,119150.0,119140.0,2.08227137]
[1755052241060,0.61319204,119150.0,119140.0,2.23859137]
[1755052241514,0.61319204,119150.0,119140.0,2.23037137]
[1755052241724,0.61319204,119150.0,119140.0,2.25537137]
[1755052241960,0.61319204,119150.0,119140.0,2.25137137]
[1755052242213,0.61319204,119150.0,119140.0,2.03947137]
[1755052242657,0.61319204,119150.0,119140.0,2.2043411]
[1755052242886,0.61319204,119150.0,119140.0,2.2063411]
[1755052243125,0.61015204,119150.0,119140.0,2.2084411]
[1755052243811,0.61319204,119150.0,119140.0,2.2084411]
[1755052244508,0.61015204,119150.0,119140.0,2.20989012]
[1755052244721,0.60803204,119150.0,119140.0,2.23800012]
[1755052245557,0.60803204,119150.0,119140.0,2.34260012]
[1755052245767,0.60803204,119150.0,119140.0,2.54372012]
[1755052245978,0.60803204,119150.0,119140.0,2.74372012]
[1755052246844,0.60803204,119150.0,119140.0,2.74072012]
[1755052247051,0.60803204,119150.0,119140.0,2.73872012]
[1755052247292,0.60803204,119150.0,119140.0,2.74572012]
[1755052248024,0.60803204,119150.0,119140.0,2.96062012]
[1755052248317,0.60803204,119150.0,119140.0,2.85602012]
[1755052248547,0.60803204,119150.0,119140.0,2.90637012]
[1755052248739,0.59964887,119150.0,119140.0,2.85602012]
[1755052248954,0.58635083,119150.0,119140.0,2.88078573]
[1755052249154,0.55735191,119150.0,119140.0,2.86038783]
[1755052249571,0.54621642,119150.0,119140.0,2.85738783]
[1755052249964,0.53783325,119150.0,119140.0,2.85338783]
[1755052250163,0.53783325,119150.0,119140.0,2.85738783]
[1755052250374,0.53783325,119150.0,119140.0,2.86338783]
[1755052250583,0.52945008,119150.0,119140.0,2.85738783]
[1755052251231,0.52106691,119150.0,119140.0,2.86438783]
[1755052251431,0.51268517,119150.0,119140.0,2.86438783]
[1755052251853,0.50430343,119150.0,119140.0,2.86438783]
[1755052252281,0.49592169,119150.0,119140.0,2.86438783]
[1755052252701,0.48753995,119150.0,119140.0,2.86438783]
[1755052252905,0.48753995,119150.0,119140.0,2.86038783]
[1755052253083,0.47915821,119150.0,119140.0,2.86038783]
[1755052253291,0.44786594,119150.0,119140.0,2.86538783]
[1755052253491,0.4394842,119150.0,119140.0,2.89952511]
[1755052253944,0.40176636,119150.0,119140.0,2.89952511]
[1755052254366,0.39338462,119150.0,119140.0,2.88752511]
[1755052254577,0.36404852,119150.0,119140.0,2.90152511]
[1755052254791,0.35466376,119150.0,119140.0,2.90152511]
[1755052255227,0.34628202,119150.0,119140.0,2.90152511]
[1755052255410,0.31694592,119150.0,119140.0,2.90152511]
[1755052255646,0.30856418,119150.0,119140.0,3.20720511]
[1755052255845,0.30856418,119150.0,119140.0,3.17306783]
[1755052256030,0.27084634,119150.0,119140.0,3.17743436]
[1755052256247,0.22351085,119150.0,119140.0,3.51137436]
[1755052256358,0.21512911,119150.0,119140.0,3.31025436]
[1755052256569,0.18579301,119150.0,119140.0,3.31025436]
[1755052256773,0.17741127,119150.0,119140.0,3.31025436]
[1755052257403,0.13887113,119150.0,119140.0,3.31025436]
[1755052257611,0.13710138,119150.0,119140.0,3.31025436]
[1755052257823,0.12871964,119150.0,119140.0,3.31025436]
[1755052258002,0.09938938,119150.0,119140.0,3.31025436]
[1755052258315,0.09100931,119150.0,119140.0,3.31025436]
[1755052258464,0.07790596,119150.0,119140.0,3.31025436]
[1755052258668,0.04019563,119150.0,119140.0,3.31025436]
[1755052258995,0.03181556,119150.0,119140.0,3.31025436]
[1755052259286,0.0024853,119150.0,119140.0,3.31025436]
[1755052259439,0.0004,119170.0,119160.0,1.02436057]
[1755052259638,0.00044896,119170.0,119160.0,7.09121105]
[1755052259849,0.00044896,119170.0,119160.0,7.30910105]
[1755052260283,0.00044896,119170.0,119160.0,7.33306105]
[1755052260609,0.00044896,119170.0,119160.0,7.33706105]
[1755052261593,0.00044896,119170.0,119160.0,7.32252882]
[1755052263155,0.00044896,119170.0,119160.0,7.31852882]
[1755052263628,0.00044896,119170.0,119160.0,7.32352882]
[1755052264929,0.00044896,119170.0,119160.0,7.31864882]
[1755052265139,0.00244896,119170.0,119160.0,7.31565882]
[1755052265570,0.00545896,119170.0,119160.0,7.62615882]
[1755052266294,0.00545896,119170.0,119160.0,7.54000882]
[1755052266515,0.00244896,119170.0,119160.0,7.53500882]
[1755052266719,0.00244896,119170.0,119160.0,7.52800882]
[1755052266927,0.00244896,119170.0,119160.0,7.53200882]
[1755052268225,0.00244896,119170.0,119160.0,7.53800882]
[1755052268438,0.00244896,119170.0,119160.0,7.54099882]
[1755052268439,0.00044896,119170.0,119160.0,7.54099882]
[1755052268639,0.00044896,119170.0,119160.0,7.56139672]
[1755052269395,0.00044896,119170.0,119160.0,7.44683672]
[1755052269810,0.00044896,119170.0,119160.0,7.45383672]
[1755052270242,0.00301,119190.0,119180.0,0.87681339]
[1755052270440,0.00505895,119190.0,119180.0,6.84363664]
[1755052270628,0.00505895,119190.0,119180.0,6.86419193]
[1755052271080,0.00505895,119190.0,119180.0,6.88815193]
[1755052271451,0.00505895,119190.0,119180.0,6.89215193]
[1755052272600,0.00505895,119190.0,119180.0,6.89515193]
[1755052273034,0.0004,119210.0,119200.0,0.7]
[1755052273257,0.00288961,119210.0,119200.0,6.45190325]
[1755052273701,0.00288961,119210.0,119200.0,6.47835227]
[1755052274370,0.00288961,119210.0,119200.0,6.50514302]
[1755052274573,0.00288961,119210.0,119200.0,6.50814302]
[1755052274783,0.00288961,119210.0,119200.0,6.52414302]
[1755052275702,0.00288961,119210.0,119200.0,6.82978302]
[1755052279196,0.00288961,119210.0,119200.0,6.72522302]
[1755052281506,0.00288961,119210.0,119200.0,6.52414302]
[1755052281908,0.00288961,119210.0,119200.0,6.52927302]
[1755052282535,0.00288961,119210.0,119200.0,6.69705825]
[1755052282780,0.00088961,119210.0,119200.0,6.91195825]
[1755052285295,0.00088961,119210.0,119200.0,6.90995825]
[1755052285503,0.00088961,119210.0,119200.0,7.21551825]
[1755052285705,0.00088961,119210.0,119200.0,7.21851825]
[1755052286979,0.00088961,119210.0,119200.0,7.21551825]
[1755052287321,0.00286961,119210.0,119200.0,6.91775302]
[1755052287540,0.00286961,119210.0,119200.0,7.04604302]
[1755052287972,0.00286961,119210.0,119200.0,5.35933202]
[1755052289502,0.00286961,119210.0,119200.0,5.52711725]
[1755052289702,0.00286961,119210.0,119200.0,5.42767725]
[1755052289912,0.00088961,119210.0,119200.0,5.09535725]
[1755052290120,0.00088961,119210.0,119200.0,5.22651725]
[1755052291424,0.00088961,119210.0,119200.0,5.24329725]
[1755052295703,0.00088961,119210.0,119200.0,5.54885725]
[1755052296332,0.00088961,119210.0,119200.0,5.21769725]
[1755052296508,0.00286961,119210.0,119200.0,5.34678725]
[1755052297172,0.00286961,119210.0,119200.0,5.21261725]
[1755052297313,0.00286961,119210.0,119200.0,5.34373725]
[1755052297516,0.00286961,119210.0,119200.0,5.07139202]
[1755052298341,0.00286961,119210.0,119200.0,5.23917725]
[1755052298611,0.00286961,119210.0,119200.0,5.07139202]
[1755052298952,0.00286961,119210.0,119200.0,4.87035202]
[1755052300174,0.00286961,119210.0,119200.0,4.73927202]
[1755052300376,0.00286961,119210.0,119200.0,4.87031202]
[1755052300804,0.00286961,119210.0,119200.0,4.51131202]
[1755052301235,0.00286961,119210.0,119200.0,4.86131202]
[1755052301442,0.00286961,119210.0,119200.0,4.84453202]
[1755052301653,0.00286961,119210.0,119200.0,4.49453202]
[1755052301830,0.00286961,119210.0,119200.0,4.84453202]
[1755052302700,0.00286961,119210.0,119200.0,4.85353202]
[1755052303424,0.00286961,119210.0,119200.0,4.85654202]
[1755052304257,0.00286961,119210.0,119200.0,4.84754202]
[1755052304490,0.00286961,119210.0,119200.0,4.84453202]
[1755052304920,0.00286961,119210.0,119200.0,4.71349202]
[1755052305087,0.00286961,119210.0,119200.0,4.84433202]
[1755052305467,0.00286961,119210.0,119200.0,4.94885202]
[1755052305666,0.00286961,119210.0,119200.0,5.15497202]
[1755052306129,0.00088961,119210.0,119200.0,5.15497202]
[1755052307478,0.00088961,119210.0,119200.0,5.05041202]
[1755052307683,0.00088961,119210.0,119200.0,5.21819725]
[1755052310147,0.00088961,119210.0,119200.0,5.00329725]
[1755052311841,0.00088961,119210.0,119200.0,4.80225725]
[1755052315630,0.00088961,119210.0,119200.0,5.10781725]
[1755052316100,0.00088961,119210.0,119200.0,5.32271725]
[1755052316507,0.00088961,119210.0,119200.0,5.33171725]
[1755052317936,0.00088961,119210.0,119200.0,5.22719725]
[1755052319079,0.00088961,119210.0,119200.0,5.05965202]
[1755052319485,0.00088961,119210.0,119200.0,4.72757202]
[1755052319711,0.00286961,119210.0,119200.0,4.85650202]
[1755052320281,0.00286961,119210.0,119200.0,4.85852202]
[1755052321006,0.00286961,119210.0,119200.0,4.699053]
[1755052321379,0.00286961,119210.0,119200.0,4.353728]
[1755052321581,0.00286961,119210.0,119200.0,4.140848]
[1755052321980,0.00286961,119210.0,119200.0,4.137848]
[1755052322180,0.00286961,119210.0,119200.0,4.133848]
[1755052322407,0.00286961,119210.0,119200.0,4.136848]
[1755052323378,0.00286961,119210.0,119200.0,4.138888]
[1755052324564,0.00088961,119210.0,119200.0,4.138888]
[1755052324756,0.00088961,119210.0,119200.0,4.138808]
[1755052325501,0.00088961,119210.0,119200.0,4.444368]
[1755052326120,0.00088961,119210.0,119200.0,4.313448]
[1755052326330,0.00088961,119210.0,119200.0,4.444368]
[1755052326536,0.00088961,119210.0,119200.0,4.461148]
[1755052327704,0.00088961,119210.0,119200.0,4.87578015]
[1755052327909,0.00088961,119210.0,119200.0,4.87873695]
[1755052328115,0.00088961,119210.0,119200.0,4.87578015]
[1755052329185,0.00088961,119210.0,119200.0,4.85538225]
[1755052329577,0.00088961,119210.0,119200.0,4.75086225]
[1755052330955,0.00088961,119210.0,119200.0,4.96576225]
[1755052331491,0.00088961,119210.0,119200.0,4.94898225]
[1755052335584,0.00088961,119210.0,119200.0,5.05350225]
[1755052335974,0.00088961,119210.0,119200.0,4.88571702]
[1755052338218,0.00088961,119210.0,119200.0,5.05350225]
[1755052339706,0.00088961,119210.0,119200.0,4.94898225]
[1755052340239,0.00088961,119210.0,119200.0,4.78119702]
[1755052341638,0.00088961,119210.0,119200.0,4.79797702]
[1755052343659,0.00088961,119210.0,119200.0,4.59693702]
[1755052345737,0.00088961,119210.0,119200.0,4.90249702]
[1755052349718,0.00088961,119210.0,119200.0,4.79797702]
[1755052351972,0.00088961,119210.0,119200.0,4.59693702]
[1755052355686,0.00088961,119210.0,119200.0,4.90249702]
[1755052356416,0.00088961,119210.0,119200.0,4.76257702]
[1755052356623,0.00283961,119210.0,119200.0,4.69087702]
[1755052356829,0.88120688,119210.0,119200.0,4.45302702]
[1755052357038,0.88120688,119210.0,119200.0,3.07563402]
[1755052357247,0.88120688,119210.0,119200.0,3.058185]
[1755052357775,0.00283961,119210.0,119200.0,3.058185]
[1755052358687,0.00283961,119210.0,119200.0,2.927865]
[1755052358907,0.00283961,119210.0,119200.0,3.061255]
[1755052360523,0.00283961,119210.0,119200.0,2.846355]
[1755052360723,0.00283961,119210.0,119200.0,2.645315]
[1755052361353,0.00283961,119210.0,119200.0,2.628535]
[1755052361782,0.00283961,119210.0,119200.0,2.630495]
[1755052361987,0.00088961,119210.0,119200.0,2.630495]
[1755052363973,0.00088961,119210.0,119200.0,3.02472925]
[1755052364608,0.00088961,119210.0,119200.0,3.04512715]
[1755052365064,0.00088961,119210.0,119200.0,3.35103296]
[1755052365289,0.0001876,119210.0,119200.0,3.37603296]
[1755052365709,0.0001876,119210.0,119200.0,3.68159296]
[1755052365913,0.0001876,119210.0,119200.0,3.67859296]
[1755052366340,0.0001876,119210.0,119200.0,3.89949296]
[1755052367130,0.0001876,119210.0,119200.0,3.89749296]
[1755052367529,0.0001876,119210.0,119200.0,3.90149296]
[1755052368770,0.0001876,119210.0,119200.0,3.79697296]
[1755052370411,0.0001876,119210.0,119200.0,3.78425675]
[1755052370730,0.0001876,119210.0,119200.0,3.58321675]
[1755052371129,0.0001876,119210.0,119200.0,3.56281885]
[1755052371986,0.0001876,119210.0,119200.0,3.58321675]
[1755052372205,0.0001876,119210.0,119200.0,3.56281885]
[1755052373154,0.0004,119220.0,119210.0,0.19422018]
[1755052373361,0.0004,119220.0,119210.0,6.16451343]
[1755052374131,0.0004,119220.0,119210.0,6.18965243]
[1755052374585,0.0004,119220.0,119210.0,6.19665243]
[1755052375685,0.0004,119220.0,119210.0,6.50217243]
[1755052376159,0.0004,119220.0,119210.0,6.52717243]
[1755052376381,0.0004,119220.0,119210.0,6.54395243]
[1755052378040,0.0004,119220.0,119210.0,6.43943243]
[1755052378621,0.0004,119220.0,119210.0,6.41443243]
[1755052378923,0.0004,119220.0,119210.0,6.43943243]
[1755052379366,0.0004,119220.0,119210.0,6.43939243]
[1755052381050,0.0004,119220.0,119210.0,6.41439243]
[1755052381251,0.0004,119220.0,119210.0,6.23839243]
[1755052381582,0.0004,119220.0,119210.0,6.21339243]
[1755052382468,0.0004,119220.0,119210.0,6.04562127]
[1755052382645,0.00238,119220.0,119210.0,6.04562127]
[1755052383004,0.00238,119220.0,119210.0,6.21339243]
[1755052383211,0.0004,119220.0,119210.0,6.21339243]
[1755052384678,0.0004,119220.0,119210.0,6.08311243]
[1755052384883,0.0004,119220.0,119210.0,6.21339243]
[1755052385605,0.0004,119220.0,119210.0,6.51891243]
[1755052389099,0.0004,119220.0,119210.0,6.53931033]
[1755052389789,0.0004,119220.0,119210.0,6.23379033]
[1755052389998,0.0004,119220.0,119210.0,6.25879033]
[1755052390243,0.0004,119250.0,119240.0,0.71744902]
[1755052390442,0.00250321,119250.0,119240.0,6.55430122]
[1755052390662,0.00250321,119250.0,119240.0,6.65430122]
[1755052390788,0.00250321,119250.0,119240.0,6.65751122]
[1755052390984,0.00250321,119250.0,119240.0,6.66086322]
[1755052391417,0.00250321,119250.0,119240.0,6.66186322]
[1755052391960,0.00250321,119250.0,119240.0,6.66086322]
[1755052392291,0.00250321,119250.0,119240.0,6.66286322]
[1755052392508,0.00250321,119250.0,119240.0,6.66386322]
[1755052392732,0.00250321,119250.0,119240.0,6.66991348]
[1755052392942,0.00052321,119250.0,119240.0,6.66991348]
[1755052393639,0.00052321,119250.0,119240.0,6.67391348]
[1755052394198,0.00052321,119250.0,119240.0,6.67691348]
[1755052395607,0.00052321,119250.0,119240.0,6.98243348]
[1755052400524,0.00052321,119250.0,119240.0,6.87791348]
[1755052400956,0.00052321,119250.0,119240.0,6.67691348]
[1755052401828,0.00250321,119250.0,119240.0,6.67691348]
[1755052402270,0.00250321,119250.0,119240.0,6.67687348]
[1755052402522,0.00250321,119250.0,119240.0,6.54667348]
[1755052402715,0.00250321,119250.0,119240.0,6.67687348]
[1755052403966,0.00250321,119250.0,119240.0,6.50914453]
[1755052404303,0.00250321,119250.0,119240.0,6.37894453]
[1755052404510,0.00250321,119250.0,119240.0,6.50914453]
[1755052405546,0.00250321,119250.0,119240.0,6.81466453]
[1755052406366,0.00250321,119250.0,119240.0,6.79788453]
[1755052406537,0.00052321,119250.0,119240.0,6.79788453]
[1755052408326,0.00052321,119250.0,119240.0,6.96561348]
[1755052408682,0.00052321,119250.0,119240.0,6.79788453]
[1755052410369,0.00052321,119250.0,119240.0,6.69336453]
[1755052411435,0.00052321,119250.0,119240.0,6.86109348]
[1755052411841,0.00052321,119250.0,119240.0,6.69336453]
[1755052412252,0.00052321,119250.0,119240.0,6.86109348]
[1755052414317,0.00052321,119250.0,119240.0,6.66009348]
[1755052415582,0.00052321,119250.0,119240.0,6.96553348]
[1755052416373,0.00052321,119250.0,119240.0,6.98231348]
[1755052418469,0.00052321,119250.0,119240.0,6.54667348]
[1755052418674,0.00052321,119250.0,119240.0,6.67679348]
[1755052418883,0.00052321,119250.0,119240.0,6.50906453]
[1755052419087,0.00250321,119250.0,119240.0,5.64169553]
[1755052421372,0.00250321,119250.0,119240.0,5.62491553]
[1755052421771,0.00052321,119250.0,119240.0,5.62491553]
[1755052422552,0.00052321,119250.0,119240.0,5.79264448]
[1755052423071,0.00052321,119250.0,119240.0,5.62491553]
[1755052425648,0.00052321,119250.0,119240.0,5.93035553]
[1755052431021,0.00052321,119250.0,119240.0,5.82587553]
[1755052431323,0.00052321,119250.0,119240.0,5.84265553]
[1755052432269,0.00250321,119250.0,119240.0,4.61041351]
[1755052432482,0.88026237,119250.0,119240.0,2.91065451]
[1755052432699,0.88026237,119250.0,119240.0,2.76065451]
[1755052432949,0.00250321,119250.0,119240.0,2.91065451]
[1755052433314,0.00250321,119250.0,119240.0,2.75665451]
[1755052433407,0.88173237,119250.0,119240.0,2.76805151]
[1755052433630,0.88173237,119250.0,119240.0,2.76505151]
[1755052433854,0.88173237,119250.0,119240.0,2.76205151]
[1755052434086,0.88173237,119250.0,119240.0,2.76405151]
[1755052434318,0.88173237,119250.0,119240.0,2.76605151]
[1755052434801,0.00397321,119250.0,119240.0,2.63397151]
[1755052435025,0.00397321,119250.0,119240.0,2.76505151]
[1755052435680,0.00397321,119250.0,119240.0,2.86957151]
[1755052436788,0.9833917,119250.0,119240.0,2.61176751]
[1755052437013,0.97962423,119250.0,119240.0,2.34762051]
[1755052437240,0.97962423,119250.0,119240.0,2.47770051]
[1755052438824,0.97962423,119250.0,119240.0,2.34762051]
[1755052439050,0.97962423,119250.0,119240.0,2.47770051]
[1755052439276,0.00397321,119250.0,119240.0,2.47770051]
[1755052439504,0.9848617,119250.0,119240.0,2.47570051]
[1755052439726,0.97962423,119250.0,119240.0,2.47670051]
[1755052439921,0.97962423,119250.0,119240.0,2.67670051]
[1755052440143,0.97962423,119250.0,119240.0,2.67570051]
[1755052440600,0.97962423,119250.0,119240.0,2.46567351]
[1755052441367,0.97962423,119250.0,119240.0,2.45488451]
[1755052441562,0.99562423,119250.0,119240.0,2.31781551]
[1755052441992,0.99562423,119250.0,119240.0,2.18773551]
[1755052442199,0.99562423,119250.0,119240.0,2.31781551]
[1755052442399,0.01997321,119250.0,119240.0,2.31781551]
[1755052442615,0.99415423,119250.0,119240.0,2.31785551]
[1755052444552,0.01850321,119250.0,119240.0,2.31785551]
[1755052444770,0.99562423,119250.0,119240.0,0.98887551]
[1755052444970,0.99562423,119250.0,119240.0,0.96656351]
[1755052444971,1.97127525,119250.0,119240.0,0.96656351]
[1755052445179,0.99562423,119250.0,119240.0,0.96656351]
[1755052445846,0.99562423,119250.0,119240.0,0.96556351]
[1755052446273,0.99562423,119250.0,119240.0,0.96656351]
[1755052446483,0.99562423,119250.0,119240.0,0.96456351]
[1755052446896,0.99562423,119250.0,119240.0,0.96556351]
[1755052447381,0.99562423,119250.0,119240.0,0.96456351]
[1755052447812,1.97127525,119250.0,119240.0,0.75180026]
[1755052448024,1.97127525,119250.0,119240.0,0.88184026]
[1755052448501,0.99562423,119250.0,119240.0,0.88184026]
[1755052448927,0.01997321,119250.0,119240.0,0.88184026]
[1755052449148,1.0008617,119250.0,119240.0,0.88184026]
[1755052449369,0.99562423,119250.0,119240.0,0.88184026]
[1755052451378,2.13899013,119250.0,119240.0,0.75180026]
[1755052451603,1.97127525,119250.0,119240.0,0.75180026]
[1755052451842,1.97127525,119250.0,119240.0,0.88188026]
[1755052452077,2.16277013,119250.0,119240.0,0.75180026]
[1755052452296,2.16277013,119250.0,119240.0,0.87283]
[1755052455464,2.18791813,119250.0,119240.0,0.87283]
[1755052459710,0.23661609,119250.0,119240.0,0.87283]
[1755052459984,2.18791813,119250.0,119240.0,0.87283]
[1755052461321,2.18791813,119250.0,119240.0,0.87291]
[1755052462819,2.87282871,119250.0,119240.0,0.87291]
[1755052463634,2.88165759,119250.0,119240.0,0.76839]
[1755052463947,2.87282871,119250.0,119240.0,0.76839]
[1755052464728,2.18936053,119250.0,119240.0,0.76839]
[1755052465385,2.18936053,119250.0,119240.0,0.63823]
[1755052465617,2.18936053,119250.0,119240.0,0.76859]
[1755052466326,2.19854567,119250.0,119240.0,0.76859]
[1755052466535,2.18936053,119250.0,119240.0,0.76859]
[1755052467798,2.18936053,119250.0,119240.0,0.76855]
[1755052467799,2.2895328,119250.0,119240.0,0.76855]
[1755052469296,2.2895328,119250.0,119240.0,0.76851]
[1755052469505,2.31406676,119250.0,119240.0,0.76851]
[1755052471603,2.31706676,119250.0,119240.0,0.76851]
[1755052471828,2.32006676,119250.0,119240.0,0.76851]
[1755052472735,2.3200688,119250.0,119240.0,0.76851]
[1755052474947,2.31117489,119250.0,119240.0,0.76851]
[1755052475171,2.28739489,119250.0,119240.0,0.76851]
[1755052475387,2.28592489,119250.0,119240.0,0.76851]
[1755052478664,2.28592489,119250.0,119240.0,0.77163]
[1755052479329,2.28394489,119250.0,119240.0,0.77361]
[1755052479539,2.18377262,119250.0,119240.0,0.77361]
[1755052479953,2.18377262,119250.0,119240.0,0.78284923]
[1755052481453,2.17777262,119250.0,119240.0,0.77361]
[1755052481678,2.17977262,119250.0,119240.0,0.77361]
[1755052481925,2.16613053,119250.0,119240.0,0.76835]
[1755052482137,2.28343723,119250.0,119240.0,0.76835]
[1755052482591,2.28343897,119250.0,119240.0,0.76835]
[1755052484870,2.28343897,119250.0,119240.0,0.77147]
[1755052485267,2.2677728,119250.0,119240.0,0.77345]
[1755052485478,2.2663028,119250.0,119240.0,0.77345]
[1755052490369,2.2682828,119250.0,119240.0,0.77345]
[1755052491681,2.2663028,119250.0,119240.0,0.77345]
[1755052492026,1.02204343,119250.0,119240.0,0.77345]
[1755052492270,1.00604343,119250.0,119240.0,0.77345]
[1755052492471,1.99841565,119250.0,119240.0,0.77345]
[1755052493021,2.16613053,119250.0,119240.0,0.77345]
[1755052493426,0.21338609,119250.0,119240.0,0.77345]
[1755052493657,2.16613053,119250.0,119240.0,0.77345]
[1755052500168,2.16590537,119250.0,119240.0,0.77345]
[1755052500631,2.16787537,119250.0,119240.0,0.77345]
[1755052504068,2.16590537,119250.0,119240.0,0.77345]
[1755052508758,0.21338609,119250.0,119240.0,0.77345]
[1755052508985,2.16590537,119250.0,119240.0,0.77345]
[1755052511723,2.16787537,119250.0,119240.0,0.77147]
[1755052512320,2.16787537,119250.0,119240.0,0.76831]
[1755052513096,2.16787537,119250.0,119240.0,0.77127]
[1755052514525,2.16787537,119250.0,119240.0,0.77336]
[1755052527234,0.21338609,119250.0,119240.0,0.77336]
[1755052527435,2.16590537,119250.0,119240.0,0.77336]
[1755052528666,2.16572389,119250.0,119240.0,0.77336]
[1755052534754,1.97056399,119250.0,119240.0,0.77336]
[1755052535333,0.21338609,119250.0,119240.0,0.77336]
[1755052535514,1.97056399,119250.0,119240.0,0.77336]
[1755052536720,1.97254399,119250.0,119240.0,0.77336]
[1755052539828,5.69434649,119250.0,119240.0,0.01414844]
[1755052540036,0.016,119200.0,119190.0,0.15]
[1755052540242,1.7731779,119200.0,119190.0,0.35313]
[1755052540440,1.7731779,119200.0,119190.0,0.48313]
[1755052540554,1.7731779,119200.0,119190.0,0.48611]
[1755052540759,1.94096313,119200.0,119190.0,0.48611]
[1755052541337,1.94096313,119200.0,119190.0,0.48659961]
[1755052542723,1.16071077,119200.0,119190.0,0.48659961]
[1755052543556,1.16071077,119200.0,119190.0,0.48759961]
[1755052543890,1.00208254,119210.0,119200.0,0.2]
[1755052544107,1.01808254,119210.0,119200.0,0.20205]
[1755052544318,0.99292554,119210.0,119200.0,0.20503]
[1755052544514,0.97692554,119210.0,119200.0,0.20503]
[1755052544774,0.99292554,119210.0,119200.0,0.20503]
[1755052546105,0.99392554,119210.0,119200.0,0.28775325]
[1755052546328,0.017,119210.0,119200.0,0.28775325]
[1755052546546,0.041153,119230.0,119220.0,0.2]
[1755052546756,0.99292554,119230.0,119220.0,0.33205]
[1755052546979,0.99292554,119230.0,119220.0,0.33503]
[1755052547188,0.99292554,119230.0,119220.0,0.41775325]
[1755052548507,0.97692554,119230.0,119220.0,0.41775325]
[1755052548693,0.99292554,119230.0,119220.0,0.41775325]
[1755052549345,0.016,119230.0,119220.0,0.41775325]
[1755052549787,0.99392554,119230.0,119220.0,0.41775325]
[1755052550000,0.001,119230.0,119220.0,0.41775325]
[1755052550218,0.0166661,119230.0,119220.0,0.41775325]
[1755052550648,0.99292554,119230.0,119220.0,0.41775325]
[1755052550992,0.016,119230.0,119220.0,0.41775325]
[1755052551608,0.99292554,119240.0,119230.0,0.15]
[1755052551808,0.99292554,119240.0,119230.0,0.23775325]
[1755052552815,0.99304873,119240.0,119230.0,0.43883325]
[1755052553018,0.99304873,119240.0,119230.0,0.43983325]
[1755052554381,0.00012319,119240.0,119230.0,0.43983325]
[1755052554591,0.00012319,119240.0,119230.0,0.44880838]
[1755052554909,0.00012319,119240.0,119230.0,1.48542238]
[1755052555500,0.00012319,119240.0,119230.0,1.66056638]
[1755052556313,0.00012319,119240.0,119230.0,1.99603638]
[1755052556512,0.00012319,119240.0,119230.0,1.99503638]
[1755052556946,0.00012319,119240.0,119230.0,2.00003638]
[1755052560340,0.00012319,119240.0,119230.0,2.12999638]
[1755052565575,0.00012319,119240.0,119230.0,2.29773939]
[1755052566223,0.00012319,119240.0,119230.0,2.1474454]
[1755052569683,0.00012319,119240.0,119230.0,2.00003638]
[1755052569891,0.97704873,119240.0,119230.0,1.57870938]
[1755052570143,0.97902873,119240.0,119230.0,1.57870938]
[1755052570342,0.97902873,119240.0,119230.0,1.53992638]
[1755052571196,0.97902873,119240.0,119230.0,1.38992638]
[1755052571428,0.97902873,119240.0,119230.0,1.53992638]
[1755052571869,0.97902873,119240.0,119230.0,1.26000638]
[1755052572085,0.97902873,119240.0,119230.0,1.53988638]
[1755052573218,0.97902873,119240.0,119230.0,1.38988638]
[1755052573419,0.97902873,119240.0,119230.0,1.53988638]
[1755052574312,0.00210319,119240.0,119230.0,1.53988638]
[1755052574538,0.00734066,119240.0,119230.0,0.94330238]
[1755052574755,1.0002662,119240.0,119230.0,0.93827238]
[1755052574976,0.99502873,119240.0,119230.0,0.78827238]
[1755052575181,0.99502873,119240.0,119230.0,0.93827238]
[1755052575392,0.99502873,119240.0,119230.0,0.78827238]
[1755052575608,0.99502873,119240.0,119230.0,0.93827238]
[1755052576486,0.99502873,119240.0,119230.0,0.78827238]
[1755052576715,0.99502873,119240.0,119230.0,1.09926538]
[1755052576938,0.01810319,119240.0,119230.0,0.93827238]
[1755052577088,0.02334066,119240.0,119230.0,0.93827238]
[1755052578130,1.0002662,119240.0,119230.0,0.93827238]
[1755052578331,0.99502873,119240.0,119230.0,0.93827238]
[1755052578732,0.01810319,119240.0,119230.0,0.93827238]
[1755052578937,0.02334066,119240.0,119230.0,0.94133238]
[1755052579736,0.02334066,119240.0,119230.0,1.10635638]
[1755052580151,0.99502873,119240.0,119230.0,1.10635638]
[1755052580350,0.99502873,119240.0,119230.0,1.10837638]
[1755052580570,0.99502873,119240.0,119230.0,0.93827238]
[1755052581757,0.99502873,119240.0,119230.0,1.21464938]
[1755052581957,0.99502873,119240.0,119230.0,0.94335238]
[1755052582176,0.99502873,119240.0,119230.0,1.12715038]
[1755052582498,0.99502873,119240.0,119230.0,0.94335238]
[1755052583158,0.99502873,119240.0,119230.0,1.09703438]
[1755052583426,0.01612319,119240.0,119230.0,1.09703438]
[1755052583631,0.02136066,119240.0,119230.0,1.09703438]
[1755052585858,0.01612319,119240.0,119230.0,1.09703438]
[1755052586064,0.00012319,119240.0,119230.0,1.24703438]
[1755052594960,0.00012319,119240.0,119230.0,1.44703438]
[1755052595174,0.00012319,119240.0,119230.0,1.42189038]
[1755052595442,0.00012319,119240.0,119230.0,1.14335138]
[1755052595443,0.97902873,119240.0,119230.0,1.14335138]
[1755052595655,0.00210319,119240.0,119230.0,1.22826438]
[1755052595870,0.97902873,119240.0,119230.0,1.22826438]
[1755052596078,0.97902873,119240.0,119230.0,1.33278438]
[1755052596318,0.00210319,119240.0,119230.0,1.33278438]
[1755052596528,0.97902873,119240.0,119230.0,1.33278438]
[1755052596741,0.97902873,119240.0,119230.0,1.13278438]
[1755052597168,0.99502873,119240.0,119230.0,1.01764838]
[1755052597593,0.01810319,119240.0,119230.0,1.12188238]
[1755052597827,0.02334066,119240.0,119230.0,1.12188238]
[1755052598044,0.01810319,119240.0,119230.0,1.12486238]
[1755052598250,0.02334066,119240.0,119230.0,1.12702238]
[1755052602798,0.02136066,119240.0,119230.0,1.12702238]
[1755052604227,0.01612319,119240.0,119230.0,1.12702238]
[1755052604383,0.02136066,119240.0,119230.0,1.12702238]
[1755052604993,0.02333066,119240.0,119230.0,1.12702238]
[1755052606014,0.02333066,119240.0,119230.0,1.02278838]
[1755052606379,0.02333066,119240.0,119230.0,1.12695838]
[1755052606714,0.02333066,119240.0,119230.0,1.12883938]